bitfinex-derivatives/quotes_ETHF0:USTF0_20251103
["timestamp","ask_amount","ask_price","bid_price","bid_amount"]
[1762134107841,0.3935,3839.4,3839.3,0.00307047]
[1762134108843,0.99832042,3839.4,3839.3,0.00307047]
[1762134111946,0.99832042,3839.4,3838.9,3.2078]
[1762134111947,0.93818,3839.0,3838.9,3.2078]
[1762134112952,3.2078,3839.6,3839.0,0.6397]
[1762134113145,1.07354042,3839.5,3839.4,0.409]
[1762134113454,0.46882,3839.5,3839.4,0.409]
[1762134116253,0.46879,3839.8,3839.7,0.409]
[1762134116655,0.46887,3839.1,3839.0,0.6397]
[1762134117250,3.3025,3840.0,3839.6,0.409]
[1762134117455,0.46879,3839.8,3839.7,0.409]
[1762134117657,1.07314159,3839.8,3839.7,0.409]
[1762134117857,0.60435159,3839.8,3839.7,0.409]
[1762134118059,0.60435159,3839.8,3839.6,3.2078]
[1762134118060,0.46877,3840.0,3839.9,0.409]
[1762134118364,0.2129982,3840.3,3839.6,3.6766]
[1762134118571,0.3935,3839.7,3839.6,3.2078]
[1762134118760,0.86231,3839.7,3839.5,0.2307]
[1762134118965,0.46881,3839.7,3839.6,0.409]
[1762134119661,4.76558043,3840.4,3839.6,0.409]
[1762134119863,0.60424402,3840.3,3839.7,0.46879]
[1762134120062,0.60424402,3840.3,3839.5,3.4385]
[1762134120063,0.46877,3840.0,3839.9,0.409]
[1762134120758,0.46884,3839.4,3839.3,0.409]
[1762134121271,0.46886,3839.2,3839.1,3.2078]
[1762134121764,0.46886,3839.2,3839.1,3.6168]
[1762134123457,0.6235,3839.0,3838.9,0.00260196]
[1762134123657,1.22788835,3839.0,3838.9,0.00260196]
[1762134124064,1.35296713,3839.2,3839.0,0.2307]
[1762134124370,3.2078,3839.7,3839.1,0.409]
[1762134124664,0.60438207,3839.6,3839.1,0.409]
[1762134124863,3.2078,3839.7,3839.1,0.409]
[1762134125164,3.2078,3840.1,3839.6,0.409]
[1762134125470,0.60456788,3840.0,3839.6,0.409]
[1762134125778,3.2078,3840.1,3839.6,0.409]
[1762134125779,0.60456788,3839.9,3839.6,0.409]
[1762134126075,3.2078,3840.1,3839.6,0.409]
[1762134126262,0.60464432,3840.0,3839.9,0.409]
[1762134126458,3.6013,3840.1,3839.5,0.2307]
[1762134126870,3.6013,3840.1,3839.5,0.69952]
[1762134127059,3.2078,3840.1,3840.0,0.6397]
[1762134128363,3.2078,3840.1,3839.4,3.2078]
[1762134128364,0.23,3840.0,3839.4,3.2078]
[1762134128570,1.58296713,3840.0,3839.5,0.2307]
[1762134128764,1.35296713,3840.0,3839.5,0.2307]
[1762134129567,1.58296713,3840.0,3839.5,0.2307]
[1762134130468,1.58296713,3840.0,3839.4,3.2078]
[1762134130469,0.6235,3839.5,3839.0,0.2307]
[1762134130670,0.3935,3839.0,3838.9,0.00260196]
[1762134131169,0.46884,3839.4,3839.3,0.409]
[1762134131567,4.37969,3840.1,3839.3,0.409]
[1762134131867,0.60791102,3840.0,3839.5,0.2307]
[1762134132168,3.2078,3840.1,3839.5,0.2307]
[1762134132366,3.2078,3840.1,3839.6,0.409]
[1762134132566,3.2078,3840.1,3839.5,0.2307]
[1762134132567,0.46879,3839.8,3839.7,0.409]
[1762134133271,3.2078,3840.1,3840.0,0.6397]
[1762134133464,3.81651763,3840.1,3840.0,0.6397]
[1762134133665,3.81651763,3840.1,3839.5,0.2307]
[1762134133865,0.46878,3839.9,3839.5,0.69952]
[1762134134273,0.4688,3839.7,3839.5,0.2307]
[1762134134673,0.4688,3839.7,3839.6,0.409]
[1762134135665,3.2078,3840.1,3839.6,0.409]
[1762134135873,0.46879,3839.8,3839.6,0.409]
[1762134136071,0.46877,3840.0,3839.7,0.8778]
[1762134136266,0.46877,3840.0,3839.9,0.3622]
[1762134136467,3.2078,3840.1,3840.0,0.5977]
[1762134136770,0.46874,3840.2,3840.0,0.2355]
[1762134139475,0.46878,3839.9,3839.8,0.3622]
[1762134139871,0.46876,3840.1,3840.0,0.5977]
[1762134140275,1.35296713,3840.5,3840.4,0.3622]
[1762134140469,0.60870823,3840.5,3840.4,0.3622]
[1762134140674,0.46873,3840.3,3840.2,0.3622]
[1762134141377,0.46874,3840.2,3840.0,3.4433]
[1762134142378,0.46874,3840.3,3840.2,0.3622]
[1762134143474,0.4687,3840.6,3840.2,0.83093]
[1762134143667,3.2078,3840.8,3840.7,0.3622]
[1762134143875,3.8166376,3840.8,3840.7,0.3622]
[1762134144173,3.2078,3840.8,3840.7,0.3622]
[1762134144969,0.46868,3840.7,3840.5,0.2355]
[1762134146475,0.46868,3840.7,3840.6,0.3555]
[1762134148076,3.2078,3840.8,3840.7,0.3555]
[1762134148376,1.3554367,3840.9,3840.7,0.3555]
[1762134148587,1.3554367,3840.9,3840.8,0.3555]
[1762134149282,0.47122236,3840.9,3840.8,0.3555]
[1762134150473,1.3554367,3840.9,3840.8,0.3555]
[1762134150770,0.8867767,3840.9,3840.8,0.3555]
[1762134151276,0.00256236,3840.9,3840.8,0.3555]
[1762134151779,0.00256236,3840.9,3840.8,3.5633]
[1762134151979,0.46853,3841.9,3841.7,0.3555]
[1762134152178,0.46853,3841.9,3841.0,0.2053]
[1762134152179,0.46863,3841.1,3841.0,0.2053]
[1762134152384,0.4686,3841.4,3841.0,0.2053]
[1762134152684,0.46862,3841.2,3841.0,0.2053]
[1762134152881,0.3445,3841.1,3841.0,0.20866445]
[1762134153080,0.3445,3841.1,3841.0,0.00336445]
[1762134154978,0.3445,3840.1,3839.5,0.2053]
[1762134156084,0.3445,3840.1,3839.5,0.20726706]
[1762134156278,0.3445,3840.1,3839.6,0.4688]
[1762134157087,0.3445,3840.1,3839.5,0.20726706]
[1762134158378,0.2161,3840.0,3839.5,0.20726706]
[1762134158677,0.3445,3839.6,3839.5,0.00196706]
[1762134158877,3.41511655,3840.4,3839.5,0.56276706]
[1762134158878,3.2078,3840.4,3839.5,0.56276706]
[1762134159079,0.60797413,3840.3,3839.5,1.03157706]
[1762134159280,3.2078,3840.4,3839.5,0.56276706]
[1762134159479,0.60800077,3840.3,3839.5,0.56276706]
[1762134159684,4.56055975,3840.4,3839.5,0.56276706]
[1762134159986,0.60799926,3840.3,3839.5,0.56276706]
[1762134160186,3.2078,3840.8,3840.3,0.3555]
[1762134160387,0.60804878,3840.7,3840.3,0.3555]
[1762134160587,3.2078,3840.8,3840.3,0.3555]
[1762134160988,0.3445,3840.4,3840.0,0.2053]
[1762134161385,3.2078,3840.8,3840.3,0.3555]
[1762134161689,0.60862808,3840.7,3840.3,0.3555]
[1762134161889,3.2078,3840.8,3840.3,0.3555]
[1762134162081,0.60860911,3840.7,3840.3,0.3555]
[1762134162387,3.2078,3840.8,3840.7,0.3555]
[1762134162583,0.46869,3840.7,3840.5,0.2053]
[1762134163592,0.46869,3840.7,3840.6,0.3555]
[1762134164583,0.46865,3841.0,3840.7,0.3555]
[1762134164788,0.46865,3841.0,3840.6,0.46868]
[1762134164789,0.60875978,3840.9,3840.8,0.3555]
[1762134164988,0.46865,3841.0,3840.9,0.3555]
[1762134165986,0.7921,3840.6,3840.3,0.931]
[1762134166186,0.46867,3840.8,3840.7,0.3507]
[1762134166792,0.46869,3840.6,3840.5,0.5485]
[1762134167988,0.46863,3841.1,3841.0,0.1978]
[1762134168195,1.07745276,3841.1,3841.0,0.5485]
[1762134168384,0.46864,3841.0,3840.6,0.46868]
[1762134168592,0.46864,3841.0,3840.9,0.3507]
[1762134168792,0.47120499,3841.2,3841.1,0.3507]
[1762134169090,0.3234,3841.1,3840.7,0.46867]
[1762134169291,0.46864,3841.0,3840.9,0.3507]
[1762134169590,0.47120499,3841.2,3841.1,0.3507]
[1762134169791,0.00258499,3841.2,3841.1,0.3507]
[1762134176294,3.2078,3841.6,3841.0,3.87424]
[1762134176295,0.46855,3841.8,3841.5,0.1978]
[1762134176494,0.46855,3841.8,3841.7,0.3507]
[1762134176797,3.2078,3842.0,3841.5,0.1978]
[1762134176798,3.2078,3842.0,3841.9,0.3507]
[1762134177500,0.00197839,3842.0,3841.9,0.3507]
[1762134179603,0.3234,3841.9,3841.8,3.2078]
[1762134179800,0.47050839,3842.0,3841.9,0.3507]
[1762134180502,0.47049839,3842.0,3841.9,0.3507]
[1762134180702,0.00197839,3842.0,3841.9,0.3507]
[1762134182201,3.2078,3843.0,3842.9,0.3507]
[1762134182402,3.2078,3843.0,3842.5,0.1978]
[1762134182403,3.2078,3843.4,3843.3,0.3507]
[1762134182607,3.2078,3843.8,3843.5,0.66613]
[1762134182802,3.2078,3844.2,3843.7,0.3507]
[1762134183000,3.2078,3844.2,3844.1,0.3507]
[1762134183308,3.53303495,3844.2,3844.1,0.00187291]
[1762134183506,0.00183495,3844.2,3844.1,0.00187291]
[1762134183697,0.00183495,3844.2,3844.1,0.35257291]
[1762134186205,0.32523495,3844.2,3844.1,0.00187291]
[1762134188807,3.53303495,3844.2,3844.1,0.00187291]
[1762134193407,0.46837,3843.2,3843.1,3.2078]
[1762134193619,0.79177,3843.2,3843.1,3.2078]
[1762134194412,0.79177,3843.2,3843.1,0.0032071]
[1762134195505,0.3234,3843.2,3843.1,0.0032071]
[1762134195814,3.2078,3843.8,3843.1,0.3051071]
[1762134196214,0.46837,3843.3,3843.1,0.3051071]
[1762134198105,0.46837,3843.3,3843.2,0.3019]
[1762134199412,0.46834,3843.5,3843.4,0.3019]
[1762134199713,0.46833,3843.6,3843.5,0.184]
[1762134200014,0.46833,3843.6,3843.5,0.4859]
[1762134201214,3.20963495,3844.2,3843.5,0.4859]
[1762134201215,0.46832,3843.7,3843.6,0.3019]
[1762134201515,3.20963495,3844.2,3844.0,0.184]
[1762134201813,0.46832,3843.7,3843.5,3.3918]
[1762134202113,0.3138,3843.6,3843.5,3.3918]
[1762134202317,0.3138,3843.6,3843.5,3.2078]
[1762134202815,0.46832,3843.7,3843.5,3.3918]
[1762134203210,0.3138,3843.6,3843.5,3.3918]
[1762134203811,0.3138,3843.6,3843.1,3.2110071]
[1762134204012,1.17072,3843.9,3843.1,3.2110071]
[1762134204219,0.46837,3843.3,3843.2,0.3019]
[1762134204712,0.3138,3843.2,3843.1,3.5129071]
[1762134204916,0.46837,3843.3,3843.1,3.5129071]
[1762134205515,0.3138,3843.2,3843.1,3.2110071]
[1762134206114,0.46837,3843.3,3843.1,3.5131071]
[1762134206313,2.36597,3844.7,3843.1,3.9814871]
[1762134206314,3.20963495,3844.2,3843.1,3.9814871]
[1762134206609,0.46834,3843.5,3843.4,0.3021]
[1762134207005,0.76634,3843.5,3843.4,0.3021]
[1762134208415,0.46834,3843.5,3843.4,0.3021]
[1762134209517,0.46837,3843.2,3843.1,3.5131071]
[1762134209711,0.76637,3843.2,3843.1,3.2110071]
[1762134209914,1.37425281,3843.2,3843.1,3.5131071]
[1762134211512,1.37425281,3843.2,3843.1,3.2110071]
[1762134211912,1.37425281,3843.2,3843.1,3.5131071]
[1762134212412,1.37425281,3843.2,3843.1,0.0032071]
[1762134212716,1.61514594,3843.2,3843.1,0.0032071]
[1762134217015,1.82143177,3843.2,3843.1,0.0032071]
[1762134217915,1.82147891,3843.2,3843.1,0.0032071]
[1762134218117,1.61519308,3843.2,3843.1,0.0032071]
[1762134218727,1.61519308,3843.2,3843.1,0.3053071]
[1762134220721,1.61519308,3843.2,3843.1,0.0032071]
[1762134222220,1.37425281,3843.2,3843.1,0.0032071]
[1762134222420,1.61514405,3843.2,3843.1,0.0032071]
[1762134223325,1.37425281,3843.2,3843.1,0.0032071]
[1762134225929,0.46831,3843.7,3843.6,0.2753]
[1762134226223,1.31883872,3843.7,3843.6,0.2753]
[1762134226530,1.60123872,3843.7,3843.6,0.2753]
[1762134227227,4.05832872,3843.7,3843.1,0.0032071]
[1762134227530,0.46835,3843.4,3843.3,0.2753]
[1762134228325,0.75077,3843.2,3843.1,0.0032071]
[1762134228523,0.46834,3843.5,3843.1,0.2785071]
[1762134228829,0.46832,3843.7,3843.4,0.2753]
[1762134229035,0.46832,3843.7,3843.6,0.2753]
[1762134229330,0.4683,3843.8,3843.7,0.2753]
[1762134231435,0.7507,3843.8,3843.7,0.2753]
[1762134232134,0.2824,3843.8,3843.7,0.2753]
[1762134234834,3.67606,3844.1,3844.0,0.167]
[1762134235038,3.81714202,3844.1,3844.0,0.4423]
[1762134235340,3.2078,3844.1,3843.5,0.63533]
[1762134235635,3.67606,3844.1,3844.0,0.4423]
[1762134236037,3.2078,3844.1,3844.0,0.4423]
[1762134236332,0.00183495,3844.2,3844.1,0.46826]
[1762134236533,0.00183495,3844.2,3844.1,0.2753]
[1762134236839,0.28423495,3844.2,3844.1,0.2753]
[1762134238237,0.28423495,3844.2,3843.6,3.2078]
[1762134238238,0.2824,3844.1,3843.6,3.2078]
[1762134238535,0.4683,3843.8,3843.6,3.2078]
[1762134239035,0.46828,3844.0,3843.7,0.2753]
[1762134239236,0.46828,3844.0,3843.7,0.7436]
[1762134239836,0.46828,3844.0,3843.9,0.2753]
[1762134240338,0.75068,3844.0,3843.9,0.2753]
[1762134241044,0.7507,3843.8,3843.7,0.2753]
[1762134241238,0.47008495,3844.2,3844.1,0.2753]
[1762134241434,0.00183495,3844.2,3844.1,0.2753]
[1762134244030,0.00183495,3844.2,3844.1,2.0889246]
[1762134244235,0.46816,3845.0,3844.6,0.7435]
[1762134245240,0.02704475,3844.7,3844.6,0.7435]
[1762134245641,0.02704475,3844.7,3844.6,0.2753]
[1762134245830,0.30944475,3844.7,3844.5,3.3748]
[1762134246032,0.7506,3844.6,3844.5,3.3748]
[1762134246339,0.75064,3844.3,3844.2,0.931]
[1762134246541,1.6332646,3844.3,3844.2,0.931]
[1762134246735,1.6332646,3844.3,3844.2,1.2063]
[1762134247041,1.6332646,3844.3,3844.2,0.931]
[1762134247435,0.2824,3844.1,3844.0,0.167]
[1762134247639,0.8826246,3844.3,3843.6,3.2078]
[1762134247640,0.2824,3843.7,3843.6,3.2078]
[1762134247839,1.1650246,3843.7,3843.1,3.2110071]
[1762134248040,3.2078,3843.9,3843.8,0.2753]
[1762134248343,0.2824,3843.9,3843.8,0.2753]
[1762134248643,0.2824,3843.9,3843.5,0.167]
[1762134248942,3.2078,3844.4,3843.8,0.2753]
[1762134249136,0.2824,3843.9,3843.5,0.167]
[1762134249337,0.2824,3843.9,3843.1,3.2110071]
[1762134249338,0.2824,3843.6,3843.1,3.2110071]
[1762134250243,0.2824,3843.6,3843.5,0.167]
[1762134250942,3.2078,3844.1,3843.5,0.4423]
[1762134251148,0.1623,3844.5,3844.4,0.2753]
[1762134251149,3.2078,3844.5,3844.4,0.2753]
[1762134251337,0.02704475,3844.7,3844.6,0.2753]
[1762134252743,0.2824,3844.6,3844.3,3.2078]
[1762134252950,0.2824,3844.6,3844.3,3.67603]
[1762134253151,0.02704475,3844.7,3844.5,0.4423]
[1762134253343,0.02704475,3844.7,3844.6,0.2753]
[1762134256845,3.2078,3845.5,3845.4,0.2391]
[1762134257450,3.2078,3845.9,3845.8,0.2391]
[1762134257844,3.2078,3846.4,3846.3,0.2391]
[1762134258144,3.81892517,3846.4,3846.3,0.2391]
[1762134258552,4.06412517,3846.4,3846.3,0.2391]
[1762134259646,3.20986826,3846.4,3846.3,0.2391]
[1762134260957,3.45506826,3846.4,3846.0,0.1563]
[1762134261548,0.2452,3845.9,3845.8,0.00295711]
[1762134263349,3.20986826,3846.4,3845.8,0.24205711]
[1762134264753,3.20986826,3846.4,3846.0,0.1563]
[1762134265050,3.20986826,3846.4,3846.3,0.2391]
[1762134265349,0.00206826,3846.4,3846.3,0.2391]
[1762134265554,0.23896826,3846.4,3846.0,3.3641]
[1762134266461,0.00206826,3846.4,3846.3,0.2348]
[1762134266758,0.23896826,3846.4,3846.0,3.3641]
[1762134267155,0.00206826,3846.4,3846.3,0.2348]
[1762134267356,0.23896826,3846.4,3846.0,3.3641]
[1762134268465,0.00206826,3846.4,3846.3,0.2348]
[1762134270354,0.2369,3846.1,3846.0,3.3641]
[1762134270857,0.2369,3846.1,3845.8,0.00295711]
[1762134271061,0.2369,3845.9,3845.8,0.00295711]
[1762134273862,3.20986826,3846.4,3845.8,0.00295711]
[1762134274161,3.20986826,3846.4,3846.3,0.2348]
[1762134275861,0.00206826,3846.4,3846.3,0.2348]
[1762134276366,0.23896826,3846.4,3846.0,0.1473]
[1762134276566,0.2369,3846.0,3845.9,3.2078]
[1762134276765,0.00206826,3846.4,3845.9,3.4426]
[1762134276962,0.00206826,3846.4,3846.0,0.1473]
[1762134277164,0.2369,3845.9,3845.8,0.00295711]
[1762134280564,0.84523789,3845.9,3845.8,0.00295711]
[1762134281571,0.2369,3845.1,3845.0,3.2078]
[1762134282164,0.2369,3845.1,3844.6,0.4682]
[1762134282573,0.2369,3845.1,3844.6,0.00209917]
[1762134283968,0.2369,3844.7,3844.6,0.00209917]
[1762134285767,0.84490465,3844.7,3844.6,0.00209917]
[1762134287877,1.08571866,3844.7,3844.6,0.00209917]
[1762134288173,1.08572079,3844.7,3843.5,0.1473]
[1762134288478,4.89546882,3845.0,3843.3,3.2078]
[1762134288479,0.2327,3843.4,3843.3,3.2078]
[1762134289081,0.23486154,3843.4,3843.3,3.20988969]
[1762134291490,0.00216154,3843.4,3843.3,3.44028969]
[1762134291982,0.23486154,3843.4,3843.3,3.20988969]
[1762134292878,0.23486154,3843.4,3843.3,0.00208969]
[1762134293778,0.23486154,3843.4,3843.3,0.23248969]
[1762134294079,0.00216154,3843.4,3843.3,0.70084969]
[1762134294584,0.00216154,3843.4,3843.3,0.23248969]
[1762134295280,0.00216154,3843.4,3843.3,3.44028969]
[1762134301190,3.2078,3844.3,3844.2,0.69865]
[1762134301494,3.2078,3844.3,3844.0,0.1403]
[1762134301495,3.2078,3844.8,3844.7,0.2304]
[1762134302285,3.21046969,3844.8,3844.7,0.2304]
[1762134302477,0.2327,3844.6,3844.0,3.3481]
[1762134302681,0.2327,3844.6,3844.0,0.1403]
[1762134303083,0.2327,3844.6,3844.0,0.60857]
[1762134303285,3.21046969,3844.8,3844.5,0.3707]
[1762134304291,0.2327,3844.6,3844.5,0.3707]
[1762134304690,0.2327,3844.6,3844.5,0.1403]
[1762134304986,0.2327,3843.6,3843.5,0.1403]
[1762134305184,3.2078,3844.1,3844.0,0.2304]
[1762134305389,3.2078,3844.1,3844.0,0.3707]
[1762134305593,3.2078,3844.6,3844.0,0.3707]
[1762134305987,3.2078,3844.6,3843.5,0.1403]
[1762134305988,0.2327,3843.7,3843.5,0.1403]
[1762134306188,3.2078,3844.1,3843.5,0.3707]
[1762134307484,0.2327,3843.6,3843.5,0.1403]
[1762134309096,3.2078,3844.1,3843.5,0.83902]
[1762134309286,3.2078,3844.1,3843.5,0.3707]
[1762134309491,0.74162174,3844.0,3843.5,0.3707]
[1762134309688,3.2078,3844.1,3843.5,0.3707]
[1762134309888,0.1327,3844.0,3843.5,0.83903]
[1762134310089,0.1327,3844.0,3843.5,0.3707]
[1762134310290,0.2327,3843.4,3843.3,0.00208969]
[1762134311299,3.2078,3843.7,3843.3,0.23248969]
[1762134311498,0.61354886,3843.6,3843.5,0.1403]
[1762134311798,0.84624886,3843.6,3843.5,0.1403]
[1762134311998,0.84624886,3843.6,3843.3,0.00208969]
[1762134312198,0.2327,3843.4,3843.3,0.00208969]
[1762134313191,0.2327,3843.4,3843.3,0.23248969]
[1762134314099,3.2078,3843.7,3843.3,0.23248969]
[1762134314400,0.2327,3843.4,3843.3,0.00208969]
[1762134314891,0.84643216,3843.4,3843.3,0.00208969]
[1762134317405,0.84643216,3843.4,3843.3,0.22588969]
[1762134317704,3.2078,3844.2,3844.1,0.2238]
[1762134317887,4.29407893,3844.2,3844.0,0.1427]
[1762134318090,1.08627893,3844.1,3844.0,0.1427]
[1762134318290,1.08627893,3844.1,3843.6,0.46832]
[1762134318596,0.61397441,3844.0,3843.5,0.1427]
[1762134318797,0.2305,3843.6,3843.5,0.1427]
[1762134319494,0.2305,3843.6,3843.5,0.3665]
[1762134320393,0.84431406,3843.6,3843.5,0.1427]
[1762134320694,0.84431406,3843.6,3843.3,3.20988969]
[1762134320895,0.2305,3843.4,3843.3,3.20988969]
[1762134321199,0.84431406,3843.4,3843.3,3.20988969]
[1762134321401,0.84431406,3843.4,3843.3,3.43368969]
[1762134321996,3.2078,3844.2,3843.5,0.1427]
[1762134322193,0.85589857,3844.1,3843.5,0.1427]
[1762134322394,0.85589857,3844.0,3843.5,0.61103]
[1762134322697,0.85589857,3843.9,3843.8,0.2238]
[1762134322897,0.61406113,3843.9,3843.8,0.2238]
[1762134323098,0.61424819,3843.9,3843.6,0.46831]
[1762134323302,3.2078,3844.2,3843.6,0.46831]
[1762134323601,0.61429836,3844.1,3843.6,0.46831]
[1762134323802,0.61429836,3844.0,3843.6,0.46831]
[1762134323998,0.61429836,3843.9,3843.8,0.2238]
[1762134324196,0.2305,3843.6,3843.5,0.1427]
[1762134324398,0.2305,3843.6,3843.3,3.20988969]
[1762134324399,0.2305,3843.4,3843.3,3.20988969]
[1762134325897,0.1327,3844.0,3843.3,3.43368969]
[1762134326200,0.2168,3843.4,3843.3,3.20988969]
[1762134326596,0.61521949,3843.7,3843.3,3.43308969]
[1762134326802,0.61544222,3843.6,3843.3,3.90143969]
[1762134326998,0.61544222,3843.5,3843.4,0.2232]
[1762134327198,0.1327,3844.0,3843.5,0.1366]
[1762134327396,0.85781193,3843.9,3843.5,0.1366]
[1762134327596,0.61543457,3843.8,3843.7,0.2232]
[1762134328707,3.2078,3844.2,3843.8,0.4683]
[1762134328909,0.61516318,3844.1,3843.5,0.60493]
[1762134329203,3.2078,3844.2,3843.6,0.46832]
[1762134329394,3.2078,3844.2,3843.5,0.1366]
[1762134329395,0.6153022,3844.1,3843.7,0.4683]
[1762134329595,3.2078,3844.2,3843.7,0.4683]
[1762134329804,0.61535684,3844.1,3843.7,0.4683]
[1762134330004,3.2078,3844.2,3843.8,0.46829]
[1762134330204,0.61551559,3844.1,3843.8,0.46829]
[1762134330406,3.2078,3844.2,3843.5,0.1366]
[1762134330604,0.61554069,3844.1,3843.7,0.46831]
[1762134330805,3.2078,3844.2,3843.6,0.46832]
[1762134331105,0.61554802,3844.1,3843.6,0.46832]
[1762134331302,3.2078,3844.2,3843.8,0.46829]
[1762134331501,0.61540988,3844.1,3843.7,0.46831]
[1762134331706,3.2078,3844.2,3843.7,0.46831]
[1762134331907,0.61522181,3844.1,3843.7,0.46831]
[1762134332210,0.61522181,3844.1,3843.5,0.1366]
[1762134332211,0.61548938,3844.0,3843.8,0.46829]
[1762134332503,3.2078,3844.2,3843.8,0.46829]
[1762134332704,0.61543159,3844.1,3843.8,0.46829]
[1762134332898,0.61543159,3844.0,3843.8,0.46829]
[1762134333099,3.2078,3844.2,3843.5,0.1366]
[1762134333307,0.61549399,3844.1,3843.5,3.3444]
[1762134333501,0.61549399,3844.0,3843.5,3.3444]
[1762134333703,3.2078,3844.3,3843.7,0.46831]
[1762134334004,0.61555377,3844.2,3843.7,0.46831]
[1762134334204,0.61555377,3844.1,3844.0,0.3598]
[1762134334402,3.4246,3844.7,3844.6,0.2232]
[1762134334601,0.2168,3844.6,3844.1,0.46826]
[1762134334907,0.8582164,3844.5,3844.0,0.1366]
[1762134335101,0.6157306,3844.4,3844.1,0.46826]
[1762134335308,0.6157306,3844.3,3844.2,0.2232]
[1762134335701,0.8325306,3844.3,3844.0,0.1366]
[1762134335900,0.2168,3844.3,3844.0,0.60487]
[1762134336105,3.2078,3844.7,3844.0,0.60487]
[1762134336106,3.10829311,3844.7,3844.6,0.2232]
[1762134336305,1.83165645,3845.5,3844.6,0.2232]
[1762134336306,0.136,3845.5,3844.6,10.80426882]
[1762134336512,0.3528,3845.5,3845.4,3.2078]
[1762134337015,0.3528,3845.5,3845.0,3.2078]
[1762134337308,0.13876233,3845.5,3845.0,3.67595]
[1762134337506,0.13876233,3845.5,3845.0,3.2078]
[1762134337814,0.13876233,3845.5,3845.1,0.46814]
[1762134338103,0.13876233,3845.5,3845.0,3.2078]
[1762134338104,0.2168,3845.1,3845.0,3.2078]
[1762134338306,0.136,3845.0,3844.6,0.46819]
[1762134338519,0.136,3845.0,3844.5,3.67601]
[1762134338708,0.136,3845.0,3844.5,3.2078]
[1762134339308,0.136,3845.0,3844.6,0.46819]
[1762134339508,0.136,3845.0,3844.5,3.2078]
[1762134340012,0.2168,3844.6,3844.5,3.2078]
[1762134340308,0.136,3845.0,3844.5,3.431]
[1762134340515,0.136,3845.0,3844.6,0.4682]
[1762134340909,0.136,3845.0,3844.7,0.46818]
[1762134341314,0.136,3845.0,3844.5,3.2078]
[1762134341516,0.136,3845.0,3844.9,0.2232]
[1762134341705,0.13876233,3845.5,3845.4,0.2232]
[1762134342712,0.00276233,3845.5,3845.4,3.431]
[1762134345325,0.1077,3846.5,3846.1,0.2157]
[1762134345808,0.1077,3846.5,3846.4,0.2157]
[1762134346013,3.3438,3847.0,3846.7,0.2157]
[1762134346309,0.52173449,3846.8,3846.7,0.21754222]
[1762134346513,0.75633449,3846.8,3846.7,0.00184222]
[1762134355933,0.52173449,3846.8,3846.7,0.21754222]
[1762134356431,0.75633449,3846.8,3846.7,0.21754222]
[1762134357028,0.75633449,3846.8,3846.7,0.00184222]
[1762134357236,0.75633449,3846.8,3846.7,0.21754222]
[1762134357431,0.52173449,3846.8,3846.7,0.21754222]
[1762134357631,0.75633449,3846.8,3846.7,0.00184222]
[1762134360734,0.52173449,3846.8,3846.7,0.00184222]
[1762134360940,0.52173449,3846.8,3846.7,0.21754222]
[1762134361339,0.75633449,3846.8,3846.7,0.00184222]
[1762134361533,0.52173449,3846.8,3846.7,0.21754222]
[1762134361739,0.75633449,3846.8,3846.7,0.00184222]
[1762134364638,0.2346,3846.2,3846.1,3.2078]
[1762134365336,0.2346,3845.8,3845.7,3.2078]
[1762134365738,0.2346,3845.8,3845.7,3.2106301]
[1762134365935,0.1412,3846.0,3845.9,0.68374]
[1762134366134,0.1412,3846.0,3845.7,3.2106301]
[1762134366536,0.2346,3845.9,3845.7,3.6786901]
[1762134366843,0.1412,3846.0,3845.9,0.2157]
[1762134367335,0.3758,3846.0,3845.7,3.6786901]
[1762134367541,0.3758,3846.0,3845.7,3.2106301]
[1762134367542,1.11603702,3845.8,3845.7,3.2106301]
[1762134368635,1.11603702,3845.8,3845.3,3.2078]
[1762134368636,0.2346,3845.4,3845.3,3.2078]
[1762134368837,1.11603702,3845.4,3845.3,3.2078]
[1762134369639,0.2346,3844.9,3844.8,3.2078]
[1762134369844,1.11603702,3844.9,3844.8,3.21049263]
[1762134370345,0.83482193,3844.9,3844.8,3.21049263]
[1762134371138,0.83482193,3844.9,3844.8,0.00269263]
[1762134371330,0.2346,3844.4,3844.3,3.2078]
[1762134372343,0.2346,3844.4,3844.3,3.21110153]
[1762134373242,0.1412,3844.5,3844.3,3.89504153]
[1762134374044,0.1412,3844.5,3844.3,3.42680153]
[1762134374444,0.1412,3844.5,3844.3,3.89503153]
[1762134375040,3.349,3845.0,3844.5,0.46821]
[1762134375745,3.349,3845.0,3844.3,3.21110153]
[1762134375942,0.237,3844.4,3844.3,3.21110153]
[1762134378251,0.237,3844.4,3844.3,3.67934153]
[1762134378442,0.237,3844.4,3844.3,3.21110153]
[1762134380854,0.237,3844.4,3844.3,0.00330153]
[1762134382953,0.131,3844.5,3844.3,0.00330153]
[1762134384752,0.131,3844.5,3844.3,0.47153153]
[1762134384955,0.131,3844.5,3844.4,0.2258]
[1762134386150,0.368,3845.0,3844.5,0.46821]
[1762134386845,0.368,3845.0,3844.6,0.4682]
[1762134387449,0.368,3845.0,3844.3,0.00330153]
[1762134387754,0.1407,3844.5,3844.4,0.70272]
[1762134387956,0.3675,3844.5,3844.3,0.00330153]
[1762134388247,0.2268,3844.4,3844.3,0.00330153]
[1762134389157,0.1407,3844.5,3844.4,0.2345]
[1762134389649,0.3675,3844.5,3844.3,0.00330153]
[1762134390155,0.2268,3844.4,3844.3,0.00330153]
[1762134390757,0.1407,3844.5,3844.3,0.23780153]
[1762134391554,0.1407,3844.5,3844.4,0.2345]
[1762134391755,0.2268,3844.4,3844.3,0.00330153]
[1762134392961,0.3675,3844.5,3844.4,0.46822]
[1762134393358,0.3675,3844.5,3844.3,0.00330153]
[1762134393959,0.2268,3844.4,3844.3,0.00330153]
[1762134398152,0.82979806,3844.4,3844.3,0.00330153]
[1762134398557,1.06945609,3844.4,3844.3,0.00330153]